[Event "RUS-chT Higher League 2021"]
[Site "Sochi"]
[Date "2021.05.03"]
[Round "3.7"]
[White "Kalegin, Evgenij"]
[Black "Sharikov, Alexander"]
[Result "1-0"]
[ECO "C17"]
[WhiteElo "2414"]
[BlackElo "2132"]
[Annotator "NA"]
[PlyCount "79"]
[EventDate "2021.05.01"]
[EventType "team-tourn"]
[EventCountry "RUS"]
[SourceTitle "playchess.com"]
[Source "ChessBase"]
[SourceQuality "1"]
[TimeControl "40/5400+30:1800+30"]

1. e4 {[%emt 0:00:00]} e6 {[%emt 0:00:00]} 2. d4 {[%emt 0:00:00]} d5 {[%emt 0:00:00]} 3. Nc3 {[%emt 0:00:00]} Bb4 {[%emt 0:00:00]} 4. e5 {[%emt 0:00:00]} c5 {[%emt 0:00:00]} 5. a3 {[%emt 0:00:01]} Ba5 {[%emt 0:00:06]} 6. b4 {[%emt 0:00:16]} cxd4 {[%emt 0:00:08]} 7. Nb5 {[%emt 0:00:13]} Bc7 {[%emt 0:00:09]} 8. f4 {[%emt 0:00:45]} Bd7 {[%emt 0:00:08]} 9. Nxc7+ {[%emt 0:05:05]} Qxc7 {[%emt 0:00:14]} 10. Bd3 {[%emt 0:00:20]} Ba4 {[%emt 0:00:35]} 11. Bb2 {[%emt 0:04:59]} Nc6 {[%emt 0:00:21]} 12. Nf3 {[%emt 0:00:54]} Nge7 {[%emt 0:01:13]} 13. O-O {[%emt 0:00:26]} Qb6 {[%emt 0:04:07]} 14. Kh1 {[%emt 0:02:26]} Bb5 {[%emt 0:00:59]} 15. Bxd4 {[%emt 0:05:28]} Nxd4 {[%emt 0:00:51]} 16. Nxd4 {[%emt 0:00:06]} Bxd3 {[%emt 0:00:21]} 17. Qxd3 {[%emt 0:00:06]} O-O {[%emt 0:04:48]} 18. f5 {[%emt 0:00:48]} Nxf5 {[%emt 0:02:20]} 19. Nxf5 {[%emt 0:00:09]} exf5 {[%emt 0:00:06]} 20. Rxf5 {[%emt 0:00:14]} Qe6 {[%emt 0:10:26]} 21. Raf1 {[%emt 0:02:25]} Rac8 {[%emt 0:01:17]} 22. h3 {[%emt 0:08:44]} Rc7 {[%emt 0:06:44]} 23. Qg3 {[%emt 0:04:24]} Rfc8 {[%emt 0:08:16]} 24. Rf6 {[%emt 0:10:24]} Qe8 {[%emt 0:01:55]} 25. Rd6 {[%emt 0:01:55]} Rxc2 {[%emt 0:01:39]} 26. Rxd5 {[%emt 0:01:56]} Rc1 {[%emt 0:03:41]} 27. Rxc1 {[%emt 0:02:18]} Rxc1+ {[%emt 0:00:10]} 28. Kh2 {[%emt 0:00:03]} Rc8 {[%emt 0:01:06]} 29. Qd3 {[%emt 0:01:36]} h6 {[%emt 0:06:28]} 30. Qd4 {[%emt 0:01:23]} a6 {[%emt 0:06:08]} 31. Rd7 {[%emt 0:02:30]} b5 {[%emt 0:04:47]} 32. Rd6 {[%emt 0:04:07]} Ra8 {[%emt 0:01:24]} 33. Qd5 {[%emt 0:00:34]} Kf8 {[%emt 0:06:47]} 34. e6 {[%emt 0:03:12]} fxe6 {[%emt 0:01:21]} 35. Rxe6 {[%emt 0:00:10]} Qb8+ {[%emt 0:10:01]} 36. Kh1 {[%emt 0:14:54]} Ra7 {[%emt 0:01:15]} 37. Rc6 {[%emt 0:05:55]} Ra8 {[%emt 0:05:18]} 38. Rc3 {[%emt 0:00:42]} Qa7 {[%emt 0:06:18]} 39. Rf3+ {[%emt 0:00:24]} Ke8 {[%emt 0:00:02]} 40. Qe4+ {[%emt 0:00:00]} 1-0

[Event "RUS-chT Higher League 2021"]
[Site "Sochi"]
[Date "2021.05.03"]
[Round "3.8"]
[White "Bobkov, Vadim"]
[Black "Zhelnin, Vladimir V"]
[Result "0-1"]
[ECO "E61"]
[WhiteElo "2265"]
[BlackElo "2408"]
[Annotator "NA"]
[PlyCount "80"]
[EventDate "2021.05.01"]
[EventType "team-tourn"]
[EventCountry "RUS"]
[SourceTitle "playchess.com"]
[Source "ChessBase"]
[SourceQuality "1"]
[TimeControl "40/5400+30:1800+30"]

1. d4 {[%emt 0:00:00]} Nf6 {[%emt 0:00:00]} 2. c4 {[%emt 0:00:00]} g6 {[%emt 0:00:00]} 3. Nc3 {[%emt 0:00:02]} Bg7 {[%emt 0:00:05]} 4. Nf3 {[%emt 0:00:20]} O-O {[%emt 0:00:41]} 5. Bg5 {[%emt 0:00:08]} d6 {[%emt 0:06:41]} 6. e3 {[%emt 0:00:13]} Nbd7 {[%emt 0:05:54]} 7. h3 {[%emt 0:01:15]} a6 {[%emt 0:05:45]} 8. Be2 {[%emt 0:00:55]} e5 {[%emt 0:03:39]} 9. O-O {[%emt 0:00:58]} Re8 {[%emt 0:06:47]} 10. b4 {[%emt 0:11:31]} h6 {[%emt 0:08:28]} 11. Bh4 {[%emt 0:00:15]} exd4 {[%emt 0:04:49]} 12. exd4 {[%emt 0:20:39]} Nf8 {[%emt 0:05:43]} 13. Qd2 {[%emt 0:13:02]} g5 {[%emt 0:08:09]} 14. Bg3 {[%emt 0:00:17]} Ng6 {[%emt 0:01:30]} 15. Rfe1 {[%emt 0:10:20]} Bf5 {[%emt 0:04:16]} 16. Bd3 {[%emt 0:16:29]} Qd7 {[%emt 0:00:34]} 17. Bh2 {[%emt 0:05:08]} Bxh3 {[%emt 0:20:25]} 18. gxh3 {[%emt 0:11:58]} g4 {[%emt 0:00:32]} 19. Qd1 {[%emt 0:00:16]} gxf3 {[%emt 0:01:41]} 20. Qxf3 {[%emt 0:00:04]} Nh7 {[%emt 0:01:53]} 21. Bf5 {[%emt 0:02:28]} Nh4 {[%emt 0:07:18]} 22. Bxh7+ {[%emt 0:00:04]} Kxh7 {[%emt 0:00:21]} 23. Qd3+ {[%emt 0:00:25]} Qf5 {[%emt 0:00:52]} 24. Qxf5+ {[%emt 0:00:06]} Nxf5 {[%emt 0:00:09]} 25. Nd5 {[%emt 0:01:05]} Nxd4 {[%emt 0:01:03]} 26. Kg2 {[%emt 0:00:06]} Ne6 {[%emt 0:02:46]} 27. Rac1 {[%emt 0:02:39]} Rad8 {[%emt 0:01:15]} 28. b5 {[%emt 0:01:14]} axb5 {[%emt 0:01:24]} 29. cxb5 {[%emt 0:00:05]} c6 {[%emt 0:00:11]} 30. Ne3 {[%emt 0:01:15]} Nd4 {[%emt 0:00:42]} 31. a4 {[%emt 0:01:27]} d5 {[%emt 0:00:42]} 32. Red1 {[%emt 0:00:22]} Ra8 {[%emt 0:00:19]} 33. Ra1 {[%emt 0:00:52]} Nxb5 {[%emt 0:00:20]} 34. Rac1 {[%emt 0:00:21]} Rxa4 {[%emt 0:00:18]} 35. Nf5 {[%emt 0:00:30]} Bf6 {[%emt 0:00:20]} 36. Rd3 {[%emt 0:00:17]} Ra2 {[%emt 0:00:54]} 37. Rf3 {[%emt 0:00:21]} Rg8+ {[%emt 0:00:51]} 38. Bg3 {[%emt 0:00:25]} h5 {[%emt 0:00:28]} 39. Nd6 {[%emt 0:00:44]} Nxd6 {[%emt 0:00:50]} 40. Rxf6 {[%emt 0:00:00]} Rxg3+ {[%emt 0:00:00]} 0-1

[Event "RUS-chT Higher League 2021"]
[Site "Sochi"]
[Date "2021.05.03"]
[Round "3.9"]
[White "Kezin, Roman"]
[Black "Tekeyev, Zaur"]
[Result "1/2-1/2"]
[ECO "E62"]
[WhiteElo "2472"]
[BlackElo "2396"]
[Annotator "ChessBase"]
[PlyCount "59"]
[EventDate "2021.05.01"]
[EventType "team-tourn"]
[EventCountry "RUS"]
[SourceTitle "playchess.com"]
[Source "ChessBase"]
[SourceQuality "1"]
[TimeControl "40/5400+30:1800+30"]

1. d4 {[%emt 0:00:00]} Nf6 {[%emt 0:00:00]} 2. c4 {[%emt 0:00:00]} g6 {[%emt 0:00:00]} 3. Nc3 {[%emt 0:00:00]} Bg7 {[%emt 0:00:00]} 4. Nf3 {[%emt 0:00:00]} O-O {[%emt 0:00:30]} 5. g3 {[%emt 0:00:00]} d6 {[%emt 0:07:45]} 6. Bg2 {[%emt 0:00:07]} c6 {[%emt 0:00:54]} 7. O-O {[%emt 0:00:48]} Bf5 {[%emt 0:00:20]} 8. Ne1 {[%emt 0:02:00]} e5 {[%emt 0:00:27]} 9. d5 {[%emt 0:00:06]} cxd5 {[%emt 0:00:50]} 10. cxd5 {[%emt 0:01:15]} Na6 {[%emt 0:00:24]} 11. e4 {[%emt 0:04:00]} Bd7 {[%emt 0:01:47]} 12. Nd3 {[%emt 0:02:01]} b5 {[%emt 0:00:59]} 13. b4 {[%emt 0:21:06]} Rc8 {[%emt 0:11:13]} 14. Bd2 {[%emt 0:05:31]} Qb6 {[%emt 0:12:25]} 15. Qb1 {[%emt 0:19:25]} Nh5 {[%emt 0:21:10]} 16. a4 {[%emt 0:24:24]} bxa4 {[%emt 0:07:33]} 17. Nxa4 {[%emt 0:04:50]} Qb7 {[%emt 0:01:06]} 18. Be3 {[%emt 0:00:32]} Bb5 {[%emt 0:02:12]} 19. Nac5 {[%emt 0:06:01]} dxc5 {[%emt 0:03:42]} 20. bxc5 {[%emt 0:00:01]} Nb8 {[%emt 0:12:27]} 21. c6 {[%emt 0:05:58]} Bxc6 {[%emt 0:00:21]} 22. Qxb7 {[%emt 0:02:19]} Bxb7 {[%emt 0:00:08]} 23. Nc5 {[%emt 0:00:02]} Bc6 {[%emt 0:10:11]} 24. Rxa7 {[%emt 0:00:02]} Nf6 {[%emt 0:00:55]} 25. dxc6 {[%emt 0:00:48]} Nxc6 {[%emt 0:00:05]} 26. Ra3 {[%emt 0:00:50]} Ng4 {[%emt 0:03:03]} 27. Bh3 {[%emt 0:00:42]} Nxe3 {[%emt 0:01:01]} 28. Rxe3 {[%emt 0:00:23]} Ra8 {[%emt 0:00:48]} 29. Nd7 {[%emt 0:00:24]} Rfd8 {[%emt 0:00:22]} 30. Nb6 {[%emt 0:00:17]} 1/2-1/2

[Event "RUS-chT Higher League 2021"]
[Site "Sochi"]
[Date "2021.05.03"]
[Round "3.10"]
[White "Bykov, Egor"]
[Black "Obgolts, Erik"]
[Result "0-1"]
[ECO "A45"]
[WhiteElo "2423"]
[BlackElo "2414"]
[Annotator "NA"]
[PlyCount "102"]
[EventDate "2021.05.01"]
[EventType "team-tourn"]
[EventCountry "RUS"]
[SourceTitle "playchess.com"]
[Source "ChessBase"]
[SourceQuality "1"]
[TimeControl "40/5400+30:1800+30"]

1. d4 {[%emt 0:00:00]} Nf6 {[%emt 0:00:00]} 2. Bg5 {[%emt 0:00:00]} Ne4 {[%emt 0:05:03]} 3. Bf4 {[%emt 0:00:00]} d5 {[%emt 0:00:53]} 4. f3 {[%emt 0:02:01]} Nf6 {[%emt 0:00:32]} 5. Nc3 {[%emt 0:00:38]} c5 {[%emt 0:02:16]} 6. e3 {[%emt 0:01:52]} a6 {[%emt 0:01:57]} 7. dxc5 {[%emt 0:06:57]} Nc6 {[%emt 0:04:08]} 8. a3 {[%emt 0:05:50]} h6 {[%emt 0:07:25]} 9. b4 {[%emt 0:02:01]} e5 {[%emt 0:00:33]} 10. Bg3 {[%emt 0:00:37]} Be6 {[%emt 0:02:08]} 11. Na4 {[%emt 0:04:46]} Nd7 {[%emt 0:11:34]} 12. Ne2 {[%emt 0:20:35]} Be7 {[%emt 0:11:37]} 13. Nec3 {[%emt 0:01:50]} d4 {[%emt 0:07:15]} 14. exd4 {[%emt 0:00:31]} exd4 {[%emt 0:01:12]} 15. Ne4 {[%emt 0:01:00]} O-O {[%emt 0:00:25]} 16. Bd3 {[%emt 0:03:51]} b6 {[%emt 0:03:35]} 17. cxb6 {[%emt 0:02:51]} Nxb6 {[%emt 0:00:05]} 18. Nxb6 {[%emt 0:00:54]} Qxb6 {[%emt 0:00:05]} 19. O-O {[%emt 0:00:10]} Rfd8 {[%emt 0:06:04]} 20. Qe2 {[%emt 0:02:28]} Na7 {[%emt 0:03:04]} 21. Kh1 {[%emt 0:02:57]} a5 {[%emt 0:02:29]} 22. f4 {[%emt 0:04:51]} Bf5 {[%emt 0:03:39]} 23. Qh5 {[%emt 0:07:24]} Qg6 {[%emt 0:08:57]} 24. Qxg6 {[%emt 0:02:58]} fxg6 {[%emt 0:00:04]} 25. bxa5 {[%emt 0:01:12]} Nc6 {[%emt 0:01:12]} 26. a6 Nb8 {[%emt 0:00:54]} 27. Rfb1 {[%emt 0:02:54]} Nxa6 {[%emt 0:00:38]} 28. Rb7 {[%emt 0:03:23]} Bf8 {[%emt 0:00:39]} 29. Rb6 {[%emt 0:04:56]} Nb4 {[%emt 0:00:55]} 30. a4 {[%emt 0:06:13]} Rdc8 {[%emt 0:01:04]} 31. Nd6 {[%emt 0:04:24]} Nxc2 {[%emt 0:06:34]} 32. Bxc2 {[%emt 0:02:56]} Rxc2 {[%emt 0:00:05]} 33. Nxf5 {[%emt 0:00:31]} gxf5 {[%emt 0:00:13]} 34. Be1 {[%emt 0:00:47]} d3 {[%emt 0:00:23]} 35. Rd1 {[%emt 0:02:28]} Rxa4 {[%emt 0:01:22]} 36. Rb8 {[%emt 0:00:32]} d2 {[%emt 0:03:53]} 37. Bf2 {[%emt 0:00:11]} Rxf4 {[%emt 0:01:32]} 38. Kg1 {[%emt 0:00:55]} Rb4 {[%emt 0:00:35]} 39. Rxb4 {[%emt 0:00:32]} Bxb4 {[%emt 0:00:04]} 40. Be3 {[%emt 0:00:00]} g5 {[%emt 0:00:00]} 41. g3 {[%emt 0:01:29]} Kf7 {[%emt 0:02:44]} 42. Kf2 {[%emt 0:11:24]} Ra2 {[%emt 0:00:38]} 43. Ke2 {[%emt 0:03:01]} Kg6 {[%emt 0:00:13]} 44. Kd3 {[%emt 0:05:23]} Ra3+ {[%emt 0:00:14]} 45. Kd4 {[%emt 0:03:25]} Kh5 {[%emt 0:01:05]} 46. Bxd2 {[%emt 0:03:05]} Ra8 {[%emt 0:00:32]} 47. Ke5 {[%emt 0:04:02]} Rd8 {[%emt 0:00:12]} 48. Bxb4 {[%emt 0:00:36]} Rxd1 {[%emt 0:00:04]} 49. Kxf5 {[%emt 0:00:05]} Rf1+ {[%emt 0:00:04]} 50. Ke4 {[%emt 0:00:14]} Kg4 {[%emt 0:00:07]} 51. Bc3 {[%emt 0:02:12]} Rh1 {[%emt 0:00:37]} 0-1

[Event "RUS-chT Higher League 2021"]
[Site "Sochi"]
[Date "2021.05.03"]
[Round "3.11"]
[White "Ovod, Evgenija"]
[Black "Utnasunov, Alexander"]
[Result "1/2-1/2"]
[ECO "B90"]
[WhiteElo "2341"]
[BlackElo "2442"]
[Annotator "NA RC"]
[PlyCount "62"]
[EventDate "2021.05.01"]
[EventType "team-tourn"]
[EventCountry "RUS"]
[SourceTitle "playchess.com"]
[Source "ChessBase"]
[SourceQuality "1"]
[TimeControl "40/5400+30:1800+30"]

1. e4 {[%emt 0:00:00]} c5 {[%emt 0:00:00]} 2. Nf3 {[%emt 0:00:00]} d6 {[%emt 0:00:00]} 3. d4 {[%emt 0:00:00]} cxd4 {[%emt 0:00:08]} 4. Nxd4 {[%emt 0:00:00]} Nf6 {[%emt 0:00:11]} 5. Nc3 {[%emt 0:00:00]} a6 {[%emt 0:00:58]} 6. Be3 {[%emt 0:00:13]} e5 {[%emt 0:01:46]} 7. Nb3 {[%emt 0:00:14]} Be6 {[%emt 0:00:09]} 8. Qd2 {[%emt 0:07:50]} Nc6 {[%emt 0:02:19]} 9. O-O-O {[%emt 0:04:34]} b5 {[%emt 0:07:09]} 10. f3 {[%emt 0:01:50]} Qc7 {[%emt 0:07:21]} 11. Bg5 {[%emt 0:35:22]} Rc8 {[%emt 0:05:33]} 12. Kb1 {[%emt 0:02:01]} Be7 {[%emt 0:11:58]} 13. Bxf6 {[%emt 0:03:23]} Bxf6 {[%emt 0:06:27]} 14. Qxd6 {[%emt 0:00:06]} Qxd6 {[%emt 0:12:05]} 15. Rxd6 {[%emt 0:00:05]} Ke7 {[%emt 0:00:07]} 16. Rd1 {[%emt 0:00:30]} Nd4 {[%emt 0:02:55]} 17. Nxd4 {[%emt 0:07:54]} exd4 {[%emt 0:00:10]} 18. Ne2 {[%emt 0:00:03]} Rhd8 {[%emt 0:01:20]} 19. Nf4 {[%emt 0:03:17]} g5 {[%emt 0:05:54]} 20. Nxe6 {[%emt 0:00:27]} fxe6 {[%emt 0:00:16]} 21. Bd3 {[%emt 0:02:11]} Be5 {[%emt 0:02:51]} 22. h4 {[%emt 0:00:45]} h6 {[%emt 0:01:04]} 23. hxg5 {[%emt 0:00:27]} hxg5 {[%emt 0:00:02]} 24. Rh7+ {[%emt 0:00:03]} Kd6 {[%emt 0:00:17]} 25. Rdh1 {[%emt 0:04:22]} Rh8 {[%emt 0:01:14]} 26. Rxh8 {[%emt 0:01:08]} Rxh8 {[%emt 0:00:12]} 27. Rxh8 {[%emt 0:03:08]} Bxh8 {[%emt 0:00:02]} 28. Kc1 {[%emt 0:00:04]} Be5 {[%emt 0:00:24]} 29. Kd2 {[%emt 0:00:16]} Kc5 {[%emt 0:00:09]} 30. Ke2 {[%emt 0:01:17]} Bg3 {[%emt 0:00:15]} 31. c3 {[%emt 0:07:34]} dxc3 {[%emt 0:00:45]} 1/2-1/2

[Event "RUS-chT Higher League 2021"]
[Site "Sochi"]
[Date "2021.05.03"]
[Round "3.12"]
[White "Nechaev, Oleg"]
[Black "Kolmagorov, Alexey"]
[Result "1-0"]
[ECO "B20"]
[WhiteElo "2368"]
[BlackElo "2129"]
[Annotator "NA"]
[PlyCount "107"]
[EventDate "2021.05.01"]
[EventType "team-tourn"]
[EventCountry "RUS"]
[SourceTitle "playchess.com"]
[Source "ChessBase"]
[SourceQuality "1"]
[TimeControl "40/5400+30:1800+30"]

1. e4 {[%emt 0:00:00]} c5 {[%emt 0:00:24]} 2. c4 {[%emt 0:00:00]} Nc6 {[%emt 0:00:40]} 3. Nc3 {[%emt 0:00:00]} g6 {[%emt 0:00:18]} 4. g3 {[%emt 0:00:06]} Bg7 {[%emt 0:00:07]} 5. Bg2 {[%emt 0:00:07]} Nf6 {[%emt 0:00:21]} 6. Nge2 {[%emt 0:00:08]} d6 {[%emt 0:00:23]} 7. d3 {[%emt 0:00:15]} O-O {[%emt 0:00:12]} 8. O-O {[%emt 0:00:07]} a6 {[%emt 0:00:59]} 9. Rb1 {[%emt 0:00:08]} Rb8 {[%emt 0:00:07]} 10. a4 {[%emt 0:00:12]} Ne8 {[%emt 0:00:33]} 11. Be3 {[%emt 0:00:07]} Bg4 {[%emt 0:00:11]} 12. f3 {[%emt 0:00:12]} Bd7 {[%emt 0:00:05]} 13. d4 {[%emt 0:01:36]} cxd4 {[%emt 0:02:30]} 14. Nxd4 {[%emt 0:00:10]} Nxd4 {[%emt 0:07:23]} 15. Bxd4 {[%emt 0:02:08]} b5 {[%emt 0:02:38]} 16. axb5 {[%emt 0:05:39]} axb5 {[%emt 0:01:58]} 17. cxb5 {[%emt 0:00:57]} Bxb5 {[%emt 0:08:54]} 18. Rf2 {[%emt 0:00:12]} Bxd4 {[%emt 0:07:44]} 19. Qxd4 {[%emt 0:00:10]} Nc7 {[%emt 0:02:40]} 20. f4 {[%emt 0:05:11]} Ne6 {[%emt 0:04:09]} 21. Qe3 {[%emt 0:00:21]} Bc4 {[%emt 0:08:40]} 22. b4 {[%emt 0:07:32]} Qb6 {[%emt 0:11:48]} 23. Qxb6 {[%emt 0:00:23]} Rxb6 {[%emt 0:00:03]} 24. f5 {[%emt 0:20:02]} Nd4 {[%emt 0:07:59]} 25. Bf1 {[%emt 0:01:06]} Rc8 {[%emt 0:05:42]} 26. Bxc4 {[%emt 0:00:17]} Rxc4 {[%emt 0:00:02]} 27. Nd5 {[%emt 0:00:32]} Rb7 {[%emt 0:00:32]} 28. Ra1 {[%emt 0:04:53]} f6 {[%emt 0:05:49]} 29. g4 {[%emt 0:04:10]} g5 {[%emt 0:05:39]} 30. h4 {[%emt 0:04:28]} h6 {[%emt 0:02:05]} 31. hxg5 {[%emt 0:03:08]} hxg5 {[%emt 0:00:03]} 32. Rfa2 {[%emt 0:16:53]} Nc6 {[%emt 0:04:45]} 33. Ra8+ {[%emt 0:00:46]} Kg7 {[%emt 0:00:29]} 34. Rc8 {[%emt 0:00:45]} Ne5 {[%emt 0:01:08]} 35. Rxc4 {[%emt 0:02:57]} Nxc4 {[%emt 0:00:03]} 36. Kf2 {[%emt 0:00:20]} Ne5 {[%emt 0:02:29]} 37. Kg3 {[%emt 0:00:29]} Kf7 {[%emt 0:02:02]} 38. Rb1 {[%emt 0:02:31]} Nc4 {[%emt 0:02:32]} 39. b5 {[%emt 0:08:54]} Ke8 {[%emt 0:03:35]} 40. Rb4 {[%emt 0:00:00]} Nb6 {[%emt 0:00:00]} 41. Nxb6 {[%emt 0:06:19]} Rxb6 {[%emt 0:01:25]} 42. Kf3 {[%emt 0:00:07]} Kd7 {[%emt 0:13:35]} 43. Ke3 {[%emt 0:00:09]} Rb7 {[%emt 0:11:40]} 44. Kd4 {[%emt 0:00:22]} Kc7 {[%emt 0:04:14]} 45. Kd5 {[%emt 0:03:46]} Kb6 {[%emt 0:00:03]} 46. Rb1 {[%emt 0:06:37]} Rc7 {[%emt 0:00:29]} 47. Ke6 {[%emt 0:00:32]} Ra7 {[%emt 0:01:16]} 48. Kf7 {[%emt 0:02:49]} Rd7 {[%emt 0:02:06]} 49. Rc1 {[%emt 0:00:53]} Kxb5 {[%emt 0:00:52]} 50. Rc8 {[%emt 0:00:45]} Ra7 {[%emt 0:01:00]} 51. Re8 {[%emt 0:00:19]} Kc5 {[%emt 0:00:37]} 52. Rxe7 {[%emt 0:00:25]} Rxe7+ {[%emt 0:00:31]} 53. Kxe7 {[%emt 0:00:09]} Kd4 {[%emt 0:00:01]} 54. Kxf6 {[%emt 0:00:21]} 1-0

[Event "RUS-chT Higher League 2021"]
[Site "Sochi"]
[Date "2021.05.04"]
[Round "4.1"]
[White "Khegay, Dmitriy"]
[Black "Balashov, Yuri S"]
[Result "1/2-1/2"]
[ECO "A46"]
[WhiteElo "2523"]
[BlackElo "2461"]
[Annotator "ChessBase"]
[PlyCount "98"]
[EventDate "2021.05.01"]
[EventType "team-tourn"]
[EventCountry "RUS"]
[SourceTitle "playchess.com"]
[Source "ChessBase"]
[SourceQuality "1"]
[TimeControl "40/5400+30:1800+30"]

1. d4 {[%emt 0:00:00]} Nf6 {[%emt 0:00:00]} 2. Nf3 {[%emt 0:00:00]} e6 {[%emt 0:00:08]} 3. Bf4 {[%emt 0:00:00]} b6 {[%emt 0:00:29]} 4. e3 {[%emt 0:00:00]} Be7 {[%emt 0:01:24]} 5. c4 {[%emt 0:02:56]} Nh5 {[%emt 0:02:43]} 6. Bg3 {[%emt 0:00:05]} Bb7 {[%emt 0:00:29]} 7. Nc3 {[%emt 0:00:06]} d6 {[%emt 0:01:21]} 8. Bd3 {[%emt 0:00:28]} Nd7 {[%emt 0:00:57]} 9. Be4 {[%emt 0:07:02]} c6 {[%emt 0:03:46]} 10. Qa4 {[%emt 0:14:13]} Qc7 {[%emt 0:06:37]} 11. Bh4 {[%emt 0:00:16]} Nhf6 {[%emt 0:04:41]} 12. O-O {[%emt 0:04:06]} Nxe4 {[%emt 0:02:34]} 13. Nxe4 {[%emt 0:00:04]} Bxh4 {[%emt 0:00:11]} 14. Nxh4 {[%emt 0:00:04]} O-O {[%emt 0:03:42]} 15. Nc3 {[%emt 0:08:00]} a6 {[%emt 0:07:44]} 16. Rfd1 {[%emt 0:09:47]} c5 {[%emt 0:02:57]} 17. d5 {[%emt 0:05:58]} Nf6 {[%emt 0:02:41]} 18. e4 {[%emt 0:02:05]} exd5 {[%emt 0:06:49]} 19. exd5 {[%emt 0:01:12]} Rfe8 {[%emt 0:00:39]} 20. Re1 {[%emt 0:00:19]} g6 {[%emt 0:01:10]} 21. Nf3 {[%emt 0:02:18]} Rxe1+ {[%emt 0:09:12]} 22. Rxe1 {[%emt 0:01:25]} b5 {[%emt 0:00:17]} 23. Qb3 {[%emt 0:13:22]} bxc4 {[%emt 0:02:14]} 24. Qxc4 {[%emt 0:02:15]} Re8 {[%emt 0:00:31]} 25. Rd1 {[%emt 0:13:04]} Qb6 {[%emt 0:03:02]} 26. b3 {[%emt 0:03:16]} Qb4 {[%emt 0:00:42]} 27. h3 {[%emt 0:00:23]} Kg7 {[%emt 0:11:32]} 28. Nd2 {[%emt 0:00:16]} Re7 {[%emt 0:10:56]} 29. Nf1 {[%emt 0:00:15]} Nd7 {[%emt 0:03:16]} 30. Ne3 {[%emt 0:00:42]} Nb6 {[%emt 0:00:47]} 31. Qd3 {[%emt 0:05:31]} Bc8 {[%emt 0:00:34]} 32. Nb1 {[%emt 0:02:02]} Re5 {[%emt 0:06:21]} 33. Nd2 {[%emt 0:01:07]} Qf4 {[%emt 0:02:13]} 34. Ndc4 {[%emt 0:00:29]} Nxc4 {[%emt 0:00:15]} 35. Nxc4 {[%emt 0:01:30]} Re7 {[%emt 0:01:21]} 36. Qc3+ {[%emt 0:01:14]} Kg8 {[%emt 0:01:52]} 37. Re1 {[%emt 0:01:08]} Rxe1+ {[%emt 0:00:56]} 38. Qxe1 {[%emt 0:00:05]} Kf8 {[%emt 0:00:37]} 39. Qc3 {[%emt 0:01:14]} Bd7 {[%emt 0:01:01]} 40. Ne3 {[%emt 0:00:00]} Ke7 {[%emt 0:00:00]} 41. Qa5 {[%emt 0:02:31]} Bb5 {[%emt 0:02:13]} 42. a4 {[%emt 0:11:44]} Bd3 {[%emt 0:00:26]} 43. Qe1 {[%emt 0:15:12]} Qe5 {[%emt 0:04:03]} 44. Qd1 {[%emt 0:00:27]} Qd4 {[%emt 0:00:43]} 45. Qe1 {[%emt 0:02:39]} Qe5 {[%emt 0:00:27]} 46. Qc1 {[%emt 0:01:03]} h5 {[%emt 0:03:08]} 47. Qd2 {[%emt 0:00:55]} Qa1+ {[%emt 0:01:34]} 48. Kh2 {[%emt 0:00:06]} Qe5+ {[%emt 0:01:01]} 49. Kg1 {[%emt 0:00:04]} Qa1+ {[%emt 0:00:07]} 1/2-1/2

[Event "RUS-chT Higher League 2021"]
[Site "Sochi"]
[Date "2021.05.04"]
[Round "4.3"]
[White "Pogromsky, Mikhail"]
[Black "Kalegin, Evgenij"]
[Result "1/2-1/2"]
[ECO "E61"]
[WhiteElo "2422"]
[BlackElo "2414"]
[Annotator "NA"]
[PlyCount "57"]
[EventDate "2021.05.01"]
[EventType "team-tourn"]
[EventCountry "RUS"]
[SourceTitle "playchess.com"]
[Source "ChessBase"]
[SourceQuality "1"]
[TimeControl "40/5400+30:1800+30"]

1. d4 {[%emt 0:00:00]} Nf6 {[%emt 0:00:00]} 2. c4 {[%emt 0:01:03]} g6 {[%emt 0:00:05]} 3. Nc3 {[%emt 0:00:21]} Bg7 {[%emt 0:00:26]} 4. Bg5 {[%emt 0:01:08]} h6 {[%emt 0:06:03]} 5. Bh4 {[%emt 0:00:09]} O-O {[%emt 0:04:15]} 6. e3 {[%emt 0:02:33]} c5 {[%emt 0:02:42]} 7. Nf3 {[%emt 0:13:14]} cxd4 {[%emt 0:03:17]} 8. Nxd4 {[%emt 0:04:28]} Nc6 {[%emt 0:02:29]} 9. Be2 {[%emt 0:08:02]} d5 {[%emt 0:05:37]} 10. O-O {[%emt 0:12:09]} Nxd4 {[%emt 0:06:39]} 11. Qxd4 {[%emt 0:07:06]} Be6 {[%emt 0:04:09]} 12. c5 {[%emt 0:02:51]} Ne4 {[%emt 0:03:47]} 13. Qb4 {[%emt 0:00:24]} g5 {[%emt 0:12:29]} 14. Nxe4 {[%emt 0:04:33]} a5 {[%emt 0:01:10]} 15. Qa4 {[%emt 0:03:39]} gxh4 {[%emt 0:06:22]} 16. Nc3 {[%emt 0:00:13]} Qc7 {[%emt 0:00:31]} 17. Qxh4 {[%emt 0:02:46]} Qxc5 {[%emt 0:00:18]} 18. a3 {[%emt 0:01:06]} Bf5 {[%emt 0:06:39]} 19. Rad1 {[%emt 0:07:38]} e6 {[%emt 0:00:35]} 20. e4 {[%emt 0:00:52]} dxe4 {[%emt 0:00:42]} 21. Nxe4 {[%emt 0:00:24]} Qc2 {[%emt 0:05:24]} 22. Bd3 {[%emt 0:01:05]} Qxb2 {[%emt 0:00:20]} 23. Ng3 {[%emt 0:00:19]} Bxd3 {[%emt 0:02:27]} 24. Rxd3 {[%emt 0:00:37]} Qf6 {[%emt 0:02:50]} 25. Qh3 {[%emt 0:02:38]} Kh7 {[%emt 0:05:01]} 26. Nh5 {[%emt 0:01:48]} Qf5 {[%emt 0:01:02]} 27. Qxf5+ {[%emt 0:03:47]} exf5 {[%emt 0:00:07]} 28. Nxg7 {[%emt 0:00:08]} Kxg7 {[%emt 0:00:06]} 29. Rb1 {[%emt 0:01:18]} 1/2-1/2